[Event "*** Titled Tuesday Blitz"]
[Site "Chess.com"]
[Date "2020.12.29"]
[Round "8"]
[White "Mikhail_Golubev"]
[Black "1977Ivan"]
[Result "1-0"]
[WhiteElo "2515"]
[BlackElo "2681"]
[TimeControl "180+1"]
[EndTime "11:28:50 PST"]
[Termination "Mikhail_Golubev won by resignation"]

1. e4 {[%clk 0:03:00.9]} 1... c5 {[%clk 0:02:59.1]} 2. Nf3 {[%clk 0:03:00.8]}
2... e6 {[%clk 0:02:59.6]} 3. d4 {[%clk 0:03:00.9]} 3... cxd4 {[%clk 0:03:00.5]}
4. Nxd4 {[%clk 0:03:01.1]} 4... Nc6 {[%clk 0:03:01.1]} 5. Nc3 {[%clk 0:03:00]}
5... Qc7 {[%clk 0:03:01.4]} 6. Be3 {[%clk 0:02:59.2]} 6... a6 {[%clk 0:03:01.5]}
7. a3 {[%clk 0:02:58]} 7... b5 {[%clk 0:03:01]} 8. Nxc6 {[%clk 0:02:54.8]} 8...
Qxc6 {[%clk 0:03:01.9]} 9. Bd3 {[%clk 0:02:53.8]} 9... Bb7 {[%clk 0:02:58.3]}
10. O-O {[%clk 0:02:52.1]} 10... h5 {[%clk 0:02:58.7]} 11. Qe2 {[%clk
0:02:25.8]} 11... Nf6 {[%clk 0:02:56.2]} 12. f3 {[%clk 0:02:16.2]} 12... Bd6
{[%clk 0:02:45.9]} 13. Bd4 {[%clk 0:01:58.5]} 13... e5 {[%clk 0:02:24.5]} 14.
Be3 {[%clk 0:01:42.1]} 14... h4 {[%clk 0:02:24.6]} 15. Nd5 {[%clk 0:01:39.3]}
15... Bc5 {[%clk 0:01:47.1]} 16. Nxf6+ {[%clk 0:01:25]} 16... gxf6 {[%clk
0:01:48]} 17. Bxc5 {[%clk 0:01:24.5]} 17... Qxc5+ {[%clk 0:01:47.8]} 18. Qf2
{[%clk 0:01:25]} 18... Rc8 {[%clk 0:01:32.5]} 19. Qxc5 {[%clk 0:01:21.7]} 19...
Rxc5 {[%clk 0:01:32]} 20. a4 {[%clk 0:01:21.3]} 20... b4 {[%clk 0:01:02.2]} 21.
a5 {[%clk 0:01:20.7]} 21... Bc6 {[%clk 0:01:02.6]} 22. Bxa6 {[%clk 0:01:05]}
22... Rxc2 {[%clk 0:01:01.6]} 23. Rfc1 {[%clk 0:01:04.9]} 23... Rxc1+ {[%clk
0:00:52.6]} 24. Rxc1 {[%clk 0:01:04.5]} 24... Ke7 {[%clk 0:00:53.5]} 25. Bc4
{[%clk 0:00:52.3]} 25... Ra8 {[%clk 0:00:52.7]} 26. Ra1 {[%clk 0:00:51.1]} 26...
Ra7 {[%clk 0:00:47.2]} 27. Kf2 {[%clk 0:00:50.1]} 27... f5 {[%clk 0:00:42.7]}
28. exf5 {[%clk 0:00:45]} 28... Kf6 {[%clk 0:00:42.5]} 29. Ke3 {[%clk
0:00:31.6]} 29... d5 {[%clk 0:00:42.1]} 30. Bd3 {[%clk 0:00:31.5]} 30... d4+
{[%clk 0:00:38.5]} 31. Kd2 {[%clk 0:00:29.2]} 31... Bd7 {[%clk 0:00:38]} 32. g4
{[%clk 0:00:21.9]} 32... hxg3 {[%clk 0:00:37.2]} 33. hxg3 {[%clk 0:00:21.8]}
33... Bxf5 {[%clk 0:00:37.8]} 34. Bxf5 {[%clk 0:00:21.2]} 34... Kxf5 {[%clk
0:00:38.7]} 35. Kd3 {[%clk 0:00:21.2]} 35... b3 {[%clk 0:00:31.8]} 36. a6 {[%clk
0:00:20.3]} 36... Kg5 {[%clk 0:00:29.3]} 37. Kc4 {[%clk 0:00:19.4]} 37... f5
{[%clk 0:00:29.2]} 38. f4+ {[%clk 0:00:16.8]} 38... exf4 {[%clk 0:00:28.4]} 39.
gxf4+ {[%clk 0:00:17]} 39... Kxf4 {[%clk 0:00:29.1]} 40. Kxd4 {[%clk 0:00:17.2]}
40... Kg3 {[%clk 0:00:27.8]} 41. Kc4 {[%clk 0:00:17.2]} 41... f4 {[%clk
0:00:27.1]} 42. Kxb3 {[%clk 0:00:17.1]} 42... f3 {[%clk 0:00:27.1]} 43. Kb4
{[%clk 0:00:17.4]} 43... f2 {[%clk 0:00:25.4]} 44. Kb5 {[%clk 0:00:17.5]} 44...
Kg2 {[%clk 0:00:25.4]} 45. b4 {[%clk 0:00:12.1]} 45... f1=Q+ {[%clk 0:00:23.8]}
46. Rxf1 {[%clk 0:00:11.4]} 46... Kxf1 {[%clk 0:00:24.7]} 47. Kb6 {[%clk
0:00:11.6]} 47... Ra8 {[%clk 0:00:24.3]} 48. b5 {[%clk 0:00:10.6]} 48... Ke2
{[%clk 0:00:23.4]} 49. Kb7 {[%clk 0:00:10.3]} 49... Rg8 {[%clk 0:00:23.1]} 50.
b6 {[%clk 0:00:08.8]} 50... Kd3 {[%clk 0:00:21.5]} 51. a7 {[%clk 0:00:05.1]}
51... Rg7+ {[%clk 0:00:20.4]} 52. Ka6 {[%clk 0:00:04.8]} 52... Rg8 {[%clk
0:00:19.7]} 53. b7 {[%clk 0:00:04.8]} 53... Rg6+ {[%clk 0:00:17.2]} 54. Kb5
{[%clk 0:00:05]} 54... Rg5+ {[%clk 0:00:16.3]} 55. Kb4 {[%clk 0:00:05.1]} 55...
Rg4+ {[%clk 0:00:14.1]} 56. Kb3 {[%clk 0:00:05.2]} 56... Rg1 {[%clk 0:00:13.7]}
57. b8=Q {[%clk 0:00:05.1]} 1-0

[Event "*** Titled Tuesday Blitz"]
[Site "Chess.com"]
[Date "2020.12.29"]
[Round "8"]
[White "stephan97"]
[Black "Snowflake"]
[Result "1-0"]
[WhiteElo "2256"]
[BlackElo "2415"]
[TimeControl "180+1"]
[EndTime "11:28:52 PST"]
[Termination "stephan97 won by checkmate"]

1. d4 {[%clk 0:03:00.9]} 1... e5 {[%clk 0:02:56.3]} 2. dxe5 {[%clk 0:03:00.1]}
2... Bc5 {[%clk 0:02:56.9]} 3. Nf3 {[%clk 0:02:55.2]} 3... d6 {[%clk 0:02:56.9]}
4. exd6 {[%clk 0:02:54.6]} 4... Ne7 {[%clk 0:02:57.1]} 5. e3 {[%clk 0:02:45.4]}
5... Bxd6 {[%clk 0:02:54.8]} 6. Bd3 {[%clk 0:02:44.8]} 6... O-O {[%clk
0:02:54.1]} 7. O-O {[%clk 0:02:44.7]} 7... h6 {[%clk 0:02:52.1]} 8. b3 {[%clk
0:02:44.5]} 8... Bg4 {[%clk 0:02:48.7]} 9. Bb2 {[%clk 0:02:44.5]} 9... Nbc6
{[%clk 0:02:48.9]} 10. Nbd2 {[%clk 0:02:43.8]} 10... Kh8 {[%clk 0:02:43.9]} 11.
h3 {[%clk 0:02:40.9]} 11... Bh5 {[%clk 0:02:42]} 12. Be2 {[%clk 0:02:37.5]}
12... Bg6 {[%clk 0:02:39]} 13. c4 {[%clk 0:02:22.7]} 13... f5 {[%clk 0:02:35]}
14. Nd4 {[%clk 0:02:21.2]} 14... Nxd4 {[%clk 0:02:33.4]} 15. Bxd4 {[%clk
0:02:20.4]} 15... f4 {[%clk 0:02:32.3]} 16. exf4 {[%clk 0:02:13.8]} 16... Bxf4
{[%clk 0:02:33.2]} 17. Nf3 {[%clk 0:02:13.7]} 17... Nf5 {[%clk 0:02:29.1]} 18.
Bc3 {[%clk 0:02:12.5]} 18... Qe7 {[%clk 0:02:27.4]} 19. Bd3 {[%clk 0:01:40.3]}
19... Rad8 {[%clk 0:02:18.1]} 20. Re1 {[%clk 0:01:25.6]} 20... Qf7 {[%clk
0:02:13.1]} 21. Qe2 {[%clk 0:01:21.4]} 21... Ng3 {[%clk 0:02:09.1]} 22. fxg3
{[%clk 0:01:16.4]} 22... Bxd3 {[%clk 0:02:08.7]} 23. Qf2 {[%clk 0:01:12.6]}
23... Bd6 {[%clk 0:02:05.2]} 24. Rad1 {[%clk 0:01:08.9]} 24... Bh7 {[%clk
0:02:01.6]} 25. c5 {[%clk 0:00:56.1]} 25... Be7 {[%clk 0:01:58.1]} 26. Rxd8
{[%clk 0:00:47.6]} 26... Rxd8 {[%clk 0:01:59]} 27. Qe3 {[%clk 0:00:46.9]} 27...
Bf8 {[%clk 0:01:54.3]} 28. Kh2 {[%clk 0:00:41.7]} 28... b6 {[%clk 0:01:47.3]}
29. b4 {[%clk 0:00:40.2]} 29... Rd3 {[%clk 0:01:28.8]} 30. Qe5 {[%clk
0:00:36.8]} 30... Qxa2 {[%clk 0:01:18.6]} 31. Nh4 {[%clk 0:00:25.9]} 31... Qg8
{[%clk 0:01:11.9]} 32. Bb2 {[%clk 0:00:19.9]} 32... Rd2 {[%clk 0:01:07.8]} 33.
Bc3 {[%clk 0:00:19]} 33... Rd5 {[%clk 0:01:07.7]} 34. Qf4 {[%clk 0:00:18.2]}
34... Rd3 {[%clk 0:01:07.4]} 35. Be5 {[%clk 0:00:17.7]} 35... Be7 {[%clk
0:00:42.4]} 36. Qxh6 {[%clk 0:00:16.3]} 36... Bxh4 {[%clk 0:00:42.8]} 37. Qxh4
{[%clk 0:00:16.2]} 37... Rd7 {[%clk 0:00:37.2]} 38. Qf4 {[%clk 0:00:15.1]} 38...
Rf7 {[%clk 0:00:37]} 39. Qd4 {[%clk 0:00:14.7]} 39... a5 {[%clk 0:00:36.4]} 40.
cxb6 {[%clk 0:00:15]} 40... cxb6 {[%clk 0:00:37.3]} 41. Qxb6 {[%clk 0:00:14.8]}
41... axb4 {[%clk 0:00:37.3]} 42. Qxb4 {[%clk 0:00:15.4]} 42... Qc8 {[%clk
0:00:35.2]} 43. Qd4 {[%clk 0:00:15.2]} 43... Kg8 {[%clk 0:00:32.6]} 44. h4
{[%clk 0:00:15.2]} 44... Bf5 {[%clk 0:00:32.2]} 45. h5 {[%clk 0:00:15.1]} 45...
Kh7 {[%clk 0:00:32.2]} 46. Qh4 {[%clk 0:00:14]} 46... Qc2 {[%clk 0:00:31.5]} 47.
Bf4 {[%clk 0:00:13.8]} 47... Be4 {[%clk 0:00:30.5]} 48. Rg1 {[%clk 0:00:12.8]}
48... Rb7 {[%clk 0:00:28.9]} 49. h6 {[%clk 0:00:13]} 49... g6 {[%clk 0:00:27.6]}
50. Qf6 {[%clk 0:00:11.4]} 50... Qe2 {[%clk 0:00:17.2]} 51. Qg5 {[%clk
0:00:09.3]} 51... Bc6 {[%clk 0:00:08.2]} 52. Be5 {[%clk 0:00:09.2]} 52... Be4
{[%clk 0:00:03.2]} 53. g4 {[%clk 0:00:09.5]} 53... Qd3 {[%clk 0:00:02.8]} 54.
Qf6 {[%clk 0:00:09.4]} 54... Rb8 {[%clk 0:00:01.6]} 55. Qg7# {[%clk 0:00:09.2]}
1-0

[Event "*** Titled Tuesday Blitz"]
[Site "Chess.com"]
[Date "2020.12.29"]
[Round "8"]
[White "exoticprincess"]
[Black "vugarrasulov"]
[Result "1-0"]
[WhiteElo "2907"]
[BlackElo "2795"]
[TimeControl "180+1"]
[EndTime "11:28:54 PST"]
[Termination "exoticprincess won on time"]

1. d4 {[%clk 0:03:00.9]} 1... Nf6 {[%clk 0:03:00]} 2. Nc3 {[%clk 0:03:01.8]}
2... d5 {[%clk 0:02:59.4]} 3. Bf4 {[%clk 0:03:02.3]} 3... c5 {[%clk 0:02:58.5]}
4. e3 {[%clk 0:03:01.8]} 4... cxd4 {[%clk 0:02:58.5]} 5. exd4 {[%clk 0:03:02.7]}
5... a6 {[%clk 0:02:58.8]} 6. Bd3 {[%clk 0:03:02.5]} 6... Bg4 {[%clk 0:02:56.3]}
7. Nge2 {[%clk 0:03:02.9]} 7... Nc6 {[%clk 0:02:53.9]} 8. f3 {[%clk 0:03:02.9]}
8... Bh5 {[%clk 0:02:53.7]} 9. h4 {[%clk 0:03:03.6]} 9... Bg6 {[%clk 0:02:51.1]}
10. g4 {[%clk 0:03:04.1]} 10... e6 {[%clk 0:02:46.1]} 11. h5 {[%clk 0:03:04.2]}
11... Bxd3 {[%clk 0:02:45.7]} 12. Qxd3 {[%clk 0:03:05.1]} 12... h6 {[%clk
0:02:39.1]} 13. O-O-O {[%clk 0:03:04.8]} 13... Rc8 {[%clk 0:02:36.5]} 14. Kb1
{[%clk 0:03:04.6]} 14... Qa5 {[%clk 0:02:33.8]} 15. Nc1 {[%clk 0:03:02.7]} 15...
Bb4 {[%clk 0:02:11]} 16. Nb3 {[%clk 0:03:00]} 16... Qd8 {[%clk 0:02:11.5]} 17.
Ne2 {[%clk 0:02:56]} 17... Bd6 {[%clk 0:02:07.1]} 18. Qe3 {[%clk 0:02:54.6]}
18... Qc7 {[%clk 0:01:40.4]} 19. c3 {[%clk 0:02:51]} 19... Nd7 {[%clk
0:01:24.9]} 20. Rhe1 {[%clk 0:02:40.7]} 20... Nb6 {[%clk 0:01:24.4]} 21. Nd2
{[%clk 0:02:33.9]} 21... Na5 {[%clk 0:01:22.6]} 22. Bxd6 {[%clk 0:02:33.7]}
22... Qxd6 {[%clk 0:01:23.5]} 23. b3 {[%clk 0:02:34.2]} 23... Qa3 {[%clk
0:01:12.8]} 24. Rc1 {[%clk 0:02:31.1]} 24... Rc6 {[%clk 0:01:08.3]} 25. Rc2
{[%clk 0:02:26.6]} 25... Qe7 {[%clk 0:00:47.3]} 26. Nc1 {[%clk 0:02:24.4]} 26...
O-O {[%clk 0:00:45.8]} 27. Nd3 {[%clk 0:02:23.9]} 27... Rfc8 {[%clk 0:00:44.9]}
28. Ne5 {[%clk 0:02:23.7]} 28... R6c7 {[%clk 0:00:45.2]} 29. f4 {[%clk
0:02:18.3]} 29... Nc6 {[%clk 0:00:44.9]} 30. Nd3 {[%clk 0:02:14.3]} 30... Na7
{[%clk 0:00:30.5]} 31. Nc5 {[%clk 0:02:09.8]} 31... Nb5 {[%clk 0:00:30.6]} 32.
Kb2 {[%clk 0:02:07.3]} 32... Nd7 {[%clk 0:00:30.7]} 33. a4 {[%clk 0:02:03.3]}
33... b6 {[%clk 0:00:27.3]} 34. axb5 {[%clk 0:01:53.7]} 34... bxc5 {[%clk
0:00:27.6]} 35. bxa6 {[%clk 0:01:53.6]} 35... Qd6 {[%clk 0:00:25.9]} 36. Ra1
{[%clk 0:01:52.3]} 36... Ra8 {[%clk 0:00:25.9]} 37. g5 {[%clk 0:01:20.6]} 37...
Rxa6 {[%clk 0:00:23.9]} 38. gxh6 {[%clk 0:01:16.1]} 38... Rxa1 {[%clk
0:00:20.8]} 39. Kxa1 {[%clk 0:01:17]} 39... Ra7+ {[%clk 0:00:18.2]} 40. Ra2
{[%clk 0:01:17]} 40... Rxa2+ {[%clk 0:00:18]} 41. Kxa2 {[%clk 0:01:17.9]} 41...
cxd4 {[%clk 0:00:17.3]} 42. Qxd4 {[%clk 0:01:16.5]} 42... gxh6 {[%clk
0:00:17.9]} 43. Kb2 {[%clk 0:01:14.4]} 43... Qe7 {[%clk 0:00:16.9]} 44. b4
{[%clk 0:01:12.3]} 44... Qh4 {[%clk 0:00:15.3]} 45. b5 {[%clk 0:01:09.5]} 45...
Qxh5 {[%clk 0:00:15.7]} 46. Qa7 {[%clk 0:01:02.1]} 46... Qe2 {[%clk 0:00:14.7]}
47. Qxd7 {[%clk 0:01:02.1]} 47... Qxd2+ {[%clk 0:00:15]} 48. Kb3 {[%clk
0:01:02.6]} 48... Qxf4 {[%clk 0:00:11.6]} 49. Qc8+ {[%clk 0:01:00]} 49... Kg7
{[%clk 0:00:11.4]} 50. b6 {[%clk 0:01:00.9]} 50... Qf1 {[%clk 0:00:10.8]} 51.
Qc5 {[%clk 0:00:49.9]} 51... h5 {[%clk 0:00:10.8]} 52. Kb4 {[%clk 0:00:44.9]}
52... h4 {[%clk 0:00:09.4]} 53. Qd4+ {[%clk 0:00:44.5]} 53... f6 {[%clk
0:00:09]} 54. Qxh4 {[%clk 0:00:44.4]} 54... Qa6 {[%clk 0:00:05.9]} 55. Qg3+
{[%clk 0:00:43.5]} 55... Kf7 {[%clk 0:00:05.7]} 56. Qc7+ {[%clk 0:00:42.6]}
56... Kg6 {[%clk 0:00:06.3]} 57. b7 {[%clk 0:00:42.9]} 57... Qa2 {[%clk
0:00:04.8]} 58. b8=Q {[%clk 0:00:42.2]} 58... Qb2+ {[%clk 0:00:05.4]} 59. Ka5
{[%clk 0:00:42.1]} 59... Qa3+ {[%clk 0:00:05.9]} 60. Kb6 {[%clk 0:00:42.2]}
60... Qb3+ {[%clk 0:00:06.3]} 61. Ka7 {[%clk 0:00:42.1]} 61... Qa4+ {[%clk
0:00:06.3]} 62. Kb7 {[%clk 0:00:41]} 62... Qb5+ {[%clk 0:00:06.8]} 63. Qb6
{[%clk 0:00:41.4]} 63... Qd7+ {[%clk 0:00:06.2]} 64. Q8c7 {[%clk 0:00:41.5]}
64... Qe8 {[%clk 0:00:06.8]} 65. Qg1+ {[%clk 0:00:39.9]} 65... Kf5 {[%clk
0:00:06.9]} 66. Qf2+ {[%clk 0:00:38.7]} 66... Kg6 {[%clk 0:00:07]} 67. Qfg3+
{[%clk 0:00:38.7]} 67... Kf5 {[%clk 0:00:07.4]} 68. Qh7+ {[%clk 0:00:38.5]} 1-0

[Event "*** Titled Tuesday Blitz"]
[Site "Chess.com"]
[Date "2020.12.29"]
[Round "8"]
[White "Trickov"]
[Black "peixe64"]
[Result "0-1"]
[WhiteElo "2325"]
[BlackElo "2452"]
[TimeControl "180+1"]
[EndTime "11:28:55 PST"]
[Termination "peixe64 won on time"]

1. d4 {[%clk 0:03:00.5]} 1... Nf6 {[%clk 0:02:58.2]} 2. Nf3 {[%clk 0:02:52.1]}
2... d5 {[%clk 0:02:57.2]} 3. c4 {[%clk 0:02:46.8]} 3... e6 {[%clk 0:02:57.2]}
4. g3 {[%clk 0:02:44]} 4... dxc4 {[%clk 0:02:57.2]} 5. Qa4+ {[%clk 0:02:41.3]}
5... Bd7 {[%clk 0:02:52.4]} 6. Qxc4 {[%clk 0:02:39.8]} 6... Bc6 {[%clk
0:02:53.1]} 7. Bg2 {[%clk 0:02:35]} 7... Nbd7 {[%clk 0:02:53]} 8. Nc3 {[%clk
0:02:33]} 8... a6 {[%clk 0:02:43.3]} 9. O-O {[%clk 0:02:29.1]} 9... Bd6 {[%clk
0:02:42.1]} 10. a4 {[%clk 0:02:19]} 10... O-O {[%clk 0:02:38.5]} 11. Qd3 {[%clk
0:02:18.8]} 11... e5 {[%clk 0:02:26.8]} 12. d5 {[%clk 0:02:10.4]} 12... Nc5
{[%clk 0:02:23.1]} 13. Qd1 {[%clk 0:01:57.4]} 13... Bd7 {[%clk 0:02:10.3]} 14.
Qc2 {[%clk 0:01:43.9]} 14... a5 {[%clk 0:02:01.9]} 15. e4 {[%clk 0:01:41.7]}
15... h6 {[%clk 0:01:53.7]} 16. h3 {[%clk 0:01:39.7]} 16... Qe7 {[%clk
0:01:48.3]} 17. Be3 {[%clk 0:01:38]} 17... Rfc8 {[%clk 0:01:47.7]} 18. Nd2
{[%clk 0:01:36.7]} 18... c6 {[%clk 0:01:43.4]} 19. Nc4 {[%clk 0:01:35.4]} 19...
cxd5 {[%clk 0:01:37.6]} 20. Nxd6 {[%clk 0:01:30]} 20... Qxd6 {[%clk 0:01:34.9]}
21. exd5 {[%clk 0:01:30.1]} 21... Na6 {[%clk 0:01:19.7]} 22. Rfd1 {[%clk
0:01:25.6]} 22... Nb4 {[%clk 0:01:18.8]} 23. Qb3 {[%clk 0:01:25.3]} 23... Bf5
{[%clk 0:01:14.2]} 24. Nb5 {[%clk 0:01:23.4]} 24... Qd7 {[%clk 0:01:10.3]} 25.
Rdc1 {[%clk 0:01:14.3]} 25... Bxh3 {[%clk 0:00:59.7]} 26. Rxc8+ {[%clk
0:01:08.2]} 26... Rxc8 {[%clk 0:00:59.1]} 27. Bb6 {[%clk 0:01:03.5]} 27... Bxg2
{[%clk 0:00:57.6]} 28. Kxg2 {[%clk 0:01:02.8]} 28... Qxd5+ {[%clk 0:00:39]} 29.
Qxd5 {[%clk 0:01:01.8]} 29... Nfxd5 {[%clk 0:00:38.4]} 30. Bxa5 {[%clk
0:01:01.8]} 30... Rc2 {[%clk 0:00:36.7]} 31. b3 {[%clk 0:00:51.6]} 31... Nd3
{[%clk 0:00:32.6]} 32. Rd1 {[%clk 0:00:43.3]} 32... e4 {[%clk 0:00:30.9]} 33.
Kg1 {[%clk 0:00:38.8]} 33... Nf6 {[%clk 0:00:20.2]} 34. Nd4 {[%clk 0:00:33.6]}
34... Rb2 {[%clk 0:00:15.9]} 35. Rd2 {[%clk 0:00:32.4]} 35... Rb1+ {[%clk
0:00:15.7]} 36. Kg2 {[%clk 0:00:29.9]} 36... Ne1+ {[%clk 0:00:16.4]} 37. Kh3
{[%clk 0:00:27.3]} 37... Nf3 {[%clk 0:00:14.3]} 38. Nxf3 {[%clk 0:00:26.4]}
38... exf3 {[%clk 0:00:15.2]} 39. g4 {[%clk 0:00:26.7]} 39... Rxb3 {[%clk
0:00:13.3]} 40. Bd8 {[%clk 0:00:23.6]} 40... Ne4 {[%clk 0:00:12.7]} 41. Rc2
{[%clk 0:00:20.8]} 41... Ra3 {[%clk 0:00:11.5]} 42. a5 {[%clk 0:00:19.7]} 42...
Kh7 {[%clk 0:00:11.5]} 43. Bb6 {[%clk 0:00:18]} 43... Ra1 {[%clk 0:00:07.7]} 44.
Kh2 {[%clk 0:00:16.5]} 44... Rf1 {[%clk 0:00:07.6]} 45. Rc7 {[%clk 0:00:14.8]}
45... Nxf2 {[%clk 0:00:05]} 46. Rxf7 {[%clk 0:00:11.5]} 46... Ne4 {[%clk
0:00:04.9]} 47. Bd4 {[%clk 0:00:06.4]} 47... Kg8 {[%clk 0:00:02.5]} 48. Rxg7+
{[%clk 0:00:03.1]} 48... Kf8 {[%clk 0:00:03.3]} 49. Rxb7 {[%clk 0:00:01.3]}
49... f2 {[%clk 0:00:04]} 0-1

[Event "*** Titled Tuesday Blitz"]
[Site "Chess.com"]
[Date "2020.12.29"]
[Round "8"]
[White "beto-betun"]
[Black "Walter_White_Poland"]
[Result "0-1"]
[WhiteElo "2189"]
[BlackElo "2324"]
[TimeControl "180+1"]
[EndTime "11:28:55 PST"]
[Termination "Walter_White_Poland won by resignation"]

1. d4 {[%clk 0:03:00.9]} 1... Nf6 {[%clk 0:02:51.5]} 2. Nf3 {[%clk 0:02:42.4]}
2... c5 {[%clk 0:02:50.6]} 3. g3 {[%clk 0:02:41.6]} 3... cxd4 {[%clk 0:02:50.2]}
4. Nxd4 {[%clk 0:02:42.5]} 4... e5 {[%clk 0:02:50]} 5. Nb3 {[%clk 0:02:41.2]}
5... d5 {[%clk 0:02:49.3]} 6. c4 {[%clk 0:02:39.4]} 6... d4 {[%clk 0:02:38.7]}
7. Bg2 {[%clk 0:02:38.5]} 7... Nc6 {[%clk 0:02:38.4]} 8. O-O {[%clk 0:02:38.1]}
8... Be7 {[%clk 0:02:38.3]} 9. Bg5 {[%clk 0:02:26]} 9... O-O {[%clk 0:02:37.4]}
10. N1d2 {[%clk 0:02:23.9]} 10... Bf5 {[%clk 0:02:31.7]} 11. a3 {[%clk
0:02:19.4]} 11... Rc8 {[%clk 0:02:30.6]} 12. Rc1 {[%clk 0:02:18]} 12... Qd7
{[%clk 0:02:25]} 13. Bxf6 {[%clk 0:02:14.1]} 13... Bxf6 {[%clk 0:02:24.2]} 14.
Nc5 {[%clk 0:02:14.5]} 14... Qe7 {[%clk 0:02:20.6]} 15. b4 {[%clk 0:02:12.7]}
15... b6 {[%clk 0:02:20.5]} 16. Nce4 {[%clk 0:02:13.1]} 16... g6 {[%clk
0:02:11.5]} 17. Nxf6+ {[%clk 0:02:09.9]} 17... Qxf6 {[%clk 0:02:11.8]} 18. Ne4
{[%clk 0:02:08.4]} 18... Qe7 {[%clk 0:02:10.2]} 19. c5 {[%clk 0:02:04.6]} 19...
Bxe4 {[%clk 0:01:47]} 20. Bxe4 {[%clk 0:02:03.7]} 20... b5 {[%clk 0:01:45.7]}
21. Qb3 {[%clk 0:01:43.9]} 21... a6 {[%clk 0:01:41.6]} 22. h4 {[%clk 0:01:38.7]}
22... Kg7 {[%clk 0:01:22.8]} 23. Qf3 {[%clk 0:01:27.8]} 23... Qd7 {[%clk
0:01:11.9]} 24. g4 {[%clk 0:01:15.6]} 24... Rfd8 {[%clk 0:01:10]} 25. Rcd1
{[%clk 0:01:13.9]} 25... Ne7 {[%clk 0:01:00.9]} 26. Kh2 {[%clk 0:01:10.2]} 26...
f5 {[%clk 0:00:52.2]} 27. gxf5 {[%clk 0:01:10]} 27... gxf5 {[%clk 0:00:48.5]}
28. Rg1+ {[%clk 0:01:08.4]} 28... Kh8 {[%clk 0:00:48.7]} 29. Bb1 {[%clk
0:01:01.4]} 29... Qe6 {[%clk 0:00:42.8]} 30. Rg5 {[%clk 0:00:57.2]} 30... e4
{[%clk 0:00:35.8]} 31. Qf4 {[%clk 0:00:54.6]} 31... Rg8 {[%clk 0:00:25.4]} 32.
Rdg1 {[%clk 0:00:53.9]} 32... Rxg5 {[%clk 0:00:24.2]} 33. Rxg5 {[%clk
0:00:54.8]} 33... Rg8 {[%clk 0:00:21.7]} 34. Qd6 {[%clk 0:00:50.4]} 34... Qxd6+
{[%clk 0:00:14.5]} 35. cxd6 {[%clk 0:00:51.3]} 35... Rxg5 {[%clk 0:00:14.6]} 36.
hxg5 {[%clk 0:00:51.9]} 36... Nc6 {[%clk 0:00:14.8]} 37. f3 {[%clk 0:00:48.8]}
37... d3 {[%clk 0:00:12.8]} 38. exd3 {[%clk 0:00:48.4]} 38... e3 {[%clk
0:00:13]} 39. Kg3 {[%clk 0:00:48.2]} 39... f4+ {[%clk 0:00:12.9]} 40. Kg2 {[%clk
0:00:47.7]} 40... Kg7 {[%clk 0:00:12]} 41. Kf1 {[%clk 0:00:46]} 41... Kf7 {[%clk
0:00:09.2]} 42. d7 {[%clk 0:00:45.5]} 42... Ke7 {[%clk 0:00:08.7]} 43. d4 {[%clk
0:00:46.2]} 43... Nxd4 {[%clk 0:00:08]} 44. Bxh7 {[%clk 0:00:46.8]} 44... Nxf3
{[%clk 0:00:06.3]} 45. g6 {[%clk 0:00:47.5]} 45... Nh2+ {[%clk 0:00:06]} 46. Ke2
{[%clk 0:00:47.2]} 46... Ng4 {[%clk 0:00:04.1]} 47. g7 {[%clk 0:00:44.2]} 47...
Nf6 {[%clk 0:00:04.1]} 48. Bg6 {[%clk 0:00:43.4]} 48... Kxd7 {[%clk 0:00:03.6]}
49. Bf7 {[%clk 0:00:44.1]} 49... Kd6 {[%clk 0:00:03.7]} 50. g8=Q {[%clk
0:00:44.5]} 50... Nxg8 {[%clk 0:00:03.4]} 51. Bxg8 {[%clk 0:00:45.4]} 51... Ke5
{[%clk 0:00:04.1]} 52. Kf3 {[%clk 0:00:44.6]} 52... Kd4 {[%clk 0:00:04.3]} 53.
Be6 {[%clk 0:00:44.6]} 53... Kc3 {[%clk 0:00:04.4]} 54. Bc8 {[%clk 0:00:40]}
54... Kd2 {[%clk 0:00:04.2]} 55. Bxa6 {[%clk 0:00:27.4]} 55... e2 {[%clk
0:00:05.1]} 56. Bxb5 {[%clk 0:00:27.3]} 56... e1=Q {[%clk 0:00:06]} 57. Kxf4
{[%clk 0:00:27.6]} 57... Qe3+ {[%clk 0:00:06.9]} 58. Kg4 {[%clk 0:00:26.2]}
58... Qxa3 {[%clk 0:00:07.8]} 59. Bd7 {[%clk 0:00:20.2]} 59... Qxb4+ {[%clk
0:00:08.7]} 60. Kf5 {[%clk 0:00:20.8]} 60... Ke3 {[%clk 0:00:08.6]} 61. Ke6
{[%clk 0:00:21.7]} 61... Qc5 {[%clk 0:00:08.7]} 62. Kf7 {[%clk 0:00:21.5]} 62...
Kd4 {[%clk 0:00:09.6]} 63. Ke8 {[%clk 0:00:22.4]} 63... Ke5 {[%clk 0:00:09.3]}
64. Kd8 {[%clk 0:00:22.3]} 64... Qb6+ {[%clk 0:00:09.2]} 65. Kc8 {[%clk
0:00:22.4]} 65... Kd6 {[%clk 0:00:09.3]} 0-1